bitfinex-derivatives/quotes_ETHF0:USTF0_20250205
["timestamp","ask_amount","ask_price","bid_price","bid_amount"]
[1738765692269,0.5716,2817.5,2817.0,0.00533343]
[1738765692471,40.8,2817.4,2817.0,0.00533343]
[1738765693381,3.2078,2817.3,2817.0,0.00533343]
[1738765693673,40.8,2817.4,2817.0,0.00533343]
[1738765694277,3.2078,2817.6,2817.1,7.87942604]
[1738765694973,3.2078,2818.0,2817.2,2.98644922]
[1738765695479,3.2078,2818.0,2817.1,3.2078]
[1738765697472,3.2078,2817.3,2817.0,0.00533343]
[1738765697771,6.19424922,2817.3,2816.0,6.19424922]
[1738765698069,3.2078,2816.5,2815.7,2.98644922]
[1738765698274,3.2078,2816.5,2815.5,4.51932234]
[1738765698471,3.2078,2816.2,2815.4,2.98644922]
[1738765698775,3.2078,2816.2,2815.6,3.2078]
[1738765698968,0.00530157,2816.1,2815.6,3.2078]
[1738765699170,0.00530157,2816.1,2815.7,7.52267133]
[1738765700270,0.00530157,2816.1,2816.0,3.2078]
[1738765702380,0.00530157,2816.1,2815.8,3.2078]
[1738765702679,0.00530157,2816.1,2815.8,7.83602098]
[1738765706979,0.00530157,2816.1,2816.0,2.98644922]
[1738765707482,0.00530157,2816.1,2816.0,7.53957271]
[1738765709986,0.00530157,2816.1,2816.0,10.74737271]
[1738765712081,0.00530157,2816.1,2816.0,7.53957271]
[1738765712286,0.00530157,2816.1,2816.0,10.74737271]
[1738765713483,0.00530157,2816.1,2815.6,3.7772]
[1738765713788,0.00530157,2816.1,2815.5,0.00532387]
[1738765713989,0.00530157,2816.1,2815.5,3.21312387]
[1738765714680,0.00530157,2816.1,2815.5,0.00532387]
[1738765715388,0.00530157,2816.1,2815.7,2.98644922]
[1738765715582,0.00530157,2816.1,2815.8,3.2078]
[1738765715782,0.00530157,2816.1,2815.9,0.5483]
[1738765715990,3.2078,2816.0,2815.8,4.56450743]
[1738765716184,3.2078,2816.0,2815.5,0.00532387]
[1738765716185,3.7676,2816.0,2815.5,0.00532387]
[1738765716489,0.5598,2816.0,2815.5,0.00532387]
[1738765718491,0.00530157,2816.1,2815.5,0.00532387]
[1738765720489,0.00530157,2816.1,2815.6,4.72245848]
[1738765722886,0.00530157,2816.1,2815.5,3.21312387]
[1738765724188,0.00530157,2816.1,2815.6,4.62211562]
[1738765724492,0.00530157,2816.1,2815.7,0.5424]
[1738765727695,0.00530157,2816.1,2815.8,7.76117991]
[1738765727898,0.00530157,2816.1,2816.0,2.3798298]
[1738765728288,0.00530157,2816.1,2816.0,6.93320971]
[1738765728688,0.00530157,2816.1,2816.0,4.55337991]
[1738765729197,0.00530157,2816.1,2815.9,4.71947046]
[1738765729491,0.00530157,2816.1,2816.0,4.71947046]
[1738765729893,0.00530157,2816.1,2815.8,7.25925051]
[1738765730094,0.00530157,2816.1,2816.0,4.6553582]
[1738765730493,0.00530157,2816.1,2815.8,7.25925051]
[1738765730691,0.00530157,2816.1,2815.9,4.51358541]
[1738765740896,0.00530157,2816.1,2816.0,0.70998]
[1738765741099,3.2078,2817.5,2816.4,0.70987]
[1738765741309,3.2078,2817.5,2816.7,2.98115051]
[1738765741695,3.2078,2817.5,2816.8,4.5625262]
[1738765743201,3.2078,2817.1,2816.6,3.2078]
[1738765743608,3.2078,2816.8,2816.1,3.7509]
[1738765743806,3.2078,2816.8,2815.8,3.2078]
[1738765743807,3.91767,2816.5,2815.8,3.2078]
[1738765744010,3.2078,2816.5,2815.8,3.2078]
[1738765744611,3.2078,2816.5,2815.9,4.70059469]
[1738765744802,3.2078,2816.5,2815.9,5.23899469]
[1738765746513,1.0906,2816.7,2815.9,5.23899469]
[1738765746712,3.2078,2817.1,2816.4,2.98115051]
[1738765746901,2.98115051,2817.9,2816.7,3.2078]
[1738765746902,3.2078,2817.4,2816.7,3.2078]
[1738765747101,3.2078,2817.4,2816.7,6.18895051]
[1738765747409,1.1119,2817.5,2817.0,2.98115051]
[1738765747609,3.2078,2817.7,2817.0,6.18895051]
[1738765747912,3.2078,2817.7,2817.1,5.0623327]
[1738765748221,3.2078,2817.7,2817.3,2.98115051]
[1738765748413,3.2078,2817.7,2817.2,0.5575]
[1738765749822,3.2078,2817.4,2816.8,2.38247913]
[1738765750003,0.5459,2817.3,2816.8,2.38247913]
[1738765750210,3.2078,2817.1,2816.8,0.00532387]
[1738765751816,1.0729,2817.3,2816.8,0.00532387]
[1738765752612,1.0729,2817.3,2816.8,3.21312387]
[1738765752818,1.0729,2817.3,2816.8,0.00532387]
[1738765754318,1.0729,2817.3,2816.8,3.21312387]
[1738765757417,1.0729,2817.3,2816.8,0.00532387]
[1738765760113,3.2078,2817.1,2816.8,0.00532387]
[1738765760719,0.538,2817.0,2816.8,0.00532387]
[1738765760922,0.538,2817.0,2815.9,4.6008]
[1738765761126,0.538,2817.0,2815.9,3.2078]
[1738765761127,3.2078,2816.8,2815.9,3.2078]
[1738765761326,3.2078,2816.8,2816.1,4.54336318]
[1738765761527,3.2078,2816.8,2816.0,7.52411026]
[1738765761722,40.8,2816.9,2815.8,0.8809]
[1738765761723,0.5459,2817.3,2816.6,2.98074708]
[1738765762028,0.5459,2817.3,2816.8,3.2078]
[1738765762029,0.00532387,2817.2,2816.8,3.2078]
[1738765762229,0.00532387,2817.2,2816.7,5.71586963]
[1738765762423,0.00532387,2817.2,2816.7,1.06472387]
[1738765764129,0.56302387,2817.2,2816.7,1.06472387]
[1738765765735,3.77082387,2817.2,2816.7,0.00532387]
[1738765766232,0.5381,2817.1,2816.7,0.00532387]
[1738765766831,3.77082387,2817.2,2816.7,0.00532387]
[1738765768523,3.2078,2816.9,2816.7,0.00532387]
[1738765769631,0.5737,2816.8,2816.7,0.00532387]
[1738765769833,41.3737,2816.8,2816.7,0.00532387]
[1738765770528,0.70981,2816.7,2815.8,3.2078]
[1738765770831,3.7511,2816.6,2815.8,3.2078]
[1738765771635,3.7511,2816.6,2815.9,0.00532387]
[1738765772136,3.2078,2816.3,2815.9,0.00532387]
[1738765775529,3.7511,2816.6,2815.9,2.98607095]
[1738765776438,3.7511,2816.6,2815.9,0.00532387]
[1738765778436,3.2078,2816.2,2815.9,0.00532387]
[1738765780644,3.7511,2816.6,2816.0,2.37943175]
[1738765781337,3.2078,2816.6,2816.0,2.37943175]
[1738765781539,3.2078,2816.6,2816.1,5.21844607]
[1738765781736,3.2078,2816.6,2816.1,0.5795]
[1738765781941,3.2078,2816.6,2815.9,0.00532387]
[1738765782337,0.5656,2816.5,2815.9,0.00532387]
[1738765783241,3.2078,2816.3,2815.9,0.00532387]
[1738765785644,0.5592,2816.4,2815.9,0.00532387]
[1738765785946,3.2078,2816.9,2816.1,2.37943175]
[1738765786141,3.2078,2816.9,2816.2,0.5806]
[1738765786346,3.2078,2817.0,2816.3,3.2078]
[1738765786543,3.2078,2817.0,2816.4,0.539]
[1738765788046,0.00532387,2817.2,2816.9,3.2078]
[1738765788251,0.00532387,2817.2,2817.0,0.5612]
[1738765793551,0.00532387,2817.2,2817.1,0.5379]
[1738765797152,0.00532387,2817.2,2817.1,1.805]
[1738765797353,3.2078,2817.9,2817.2,0.70967]
[1738765797556,3.2078,2817.9,2817.3,6.18724719]
[1738765797856,3.2078,2819.0,2818.0,0.70946]
[1738765798058,3.2078,2819.0,2818.3,3.2078]
[1738765798252,40.8,2818.9,2818.3,3.2078]
[1738765798557,40.8,2818.9,2818.4,0.00532387]
[1738765798558,40.80532387,2818.9,2818.4,0.00532387]
[1738765798753,0.00532387,2818.9,2818.6,3.2078]
[1738765799059,0.00532387,2818.9,2818.4,0.00532387]
[1738765799852,3.21312387,2818.9,2818.4,0.00532387]
[1738765800250,3.2078,2818.6,2818.4,0.00532387]
[1738765800956,3.2078,2818.6,2817.0,1.77428]
[1738765800957,0.5794,2818.5,2817.5,3.2078]
[1738765801150,3.2078,2817.9,2817.5,3.2078]
[1738765801351,0.5794,2817.8,2817.5,3.2078]
[1738765801554,0.5794,2817.8,2816.9,5.70400441]
[1738765801555,0.5794,2817.8,2817.0,3.2078]
[1738765801955,0.5794,2817.8,2817.0,7.84897303]
[1738765802158,0.5794,2817.8,2817.1,2.98477106]
[1738765802354,3.2078,2817.9,2817.4,2.97944719]
[1738765802556,3.2078,2817.9,2817.3,3.2078]
[1738765802858,3.2078,2817.6,2817.2,4.64117303]
[1738765803259,3.2078,2817.3,2817.1,0.00532387]
[1738765803455,0.5795,2817.2,2817.1,0.00532387]
[1738765803655,1.28917,2817.2,2817.1,0.00532387]
[1738765803855,8.55894719,2817.2,2815.6,3.2078]
[1738765804054,40.8,2816.2,2815.5,0.5405]
[1738765804258,40.8,2816.2,2816.1,2.97944719]
[1738765804559,3.2078,2817.0,2816.1,2.97944719]
[1738765804560,3.2078,2817.6,2816.2,0.70992]
[1738765804767,3.2078,2817.6,2816.4,6.18724719]
[1738765804961,40.8,2816.9,2816.5,0.70984]
[1738765805260,40.8,2816.9,2816.7,3.2078]
[1738765805450,40.8,2816.9,2816.4,0.00532387]
[1738765805956,40.8,2816.9,2816.5,3.2078]
[1738765806151,40.8,2816.9,2816.4,0.00532387]
[1738765806356,40.8,2816.9,2816.5,4.53474963]
[1738765807063,40.8,2816.9,2816.8,3.2078]
[1738765807264,0.00532387,2817.5,2816.8,3.2078]
[1738765807458,0.00532387,2817.5,2816.9,6.76144719]
[1738765807663,0.00532387,2817.5,2817.2,3.2078]
[1738765808161,0.00532387,2817.5,2817.3,4.63535715]
[1738765808569,0.00532387,2817.5,2817.4,0.5742]
[1738765808957,3.2078,2818.8,2817.7,0.70955]
[1738765809167,3.2078,2818.8,2818.1,3.2078]
[1738765809366,3.2078,2818.8,2818.2,0.5742]
[1738765809564,3.2078,2818.8,2818.2,5.23210457]
[1738765809961,40.8,2818.7,2818.2,0.5742]
[1738765810162,40.8,2818.7,2818.2,0.57952387]
[1738765810365,40.8,2818.7,2818.4,3.2078]
[1738765810866,0.00532387,2818.8,2818.7,0.7093]
[1738765811058,3.2078,2819.8,2818.7,3.2078]
[1738765811258,3.2078,2819.5,2818.7,7.79502182]
[1738765811558,3.2078,2819.0,2818.3,3.2078]
[1738765811759,3.2078,2818.7,2818.2,0.00532387]
[1738765812063,3.91718,2818.4,2818.2,0.00532387]
[1738765812272,0.5686,2818.3,2817.3,3.2078]
[1738765812771,3.2078,2818.0,2817.3,3.2078]
[1738765813468,3.2078,2818.0,2817.4,0.00532387]
[1738765813664,0.5686,2818.3,2817.4,7.52296225]
[1738765814262,3.2078,2817.8,2817.4,0.00532387]
[1738765814571,0.5358,2817.7,2817.4,0.00532387]
[1738765814770,3.2078,2817.5,2817.4,0.00532387]
[1738765815465,44.0078,2817.5,2817.4,0.00532387]
[1738765815671,49.0078,2817.5,2816.5,0.5783]
[1738765815870,3.2078,2817.2,2816.5,0.5783]
[1738765816071,40.8,2817.5,2816.5,3.7861]
[1738765816273,40.8,2817.5,2816.9,3.2078]
[1738765816465,40.8,2817.5,2817.0,3.55774719]
[1738765816670,40.8,2817.5,2817.2,3.2078]
[1738765817077,40.80532387,2817.5,2817.2,3.2078]
[1738765817474,40.80532387,2817.5,2817.0,0.58362387]
[1738765817669,3.2078,2817.3,2817.0,0.00532387]
[1738765819172,8.2078,2817.3,2817.0,0.00532387]
[1738765819477,3.2078,2817.3,2816.0,3.7478]
[1738765819675,3.2078,2817.0,2816.0,3.7478]
[1738765819875,3.2078,2816.7,2816.0,3.7478]
[1738765820076,3.2078,2816.3,2815.4,3.2078]
[1738765820264,0.5352,2816.2,2815.4,3.7478]
[1738765820466,3.743,2816.2,2815.6,4.66925859]
[1738765820665,3.743,2816.2,2815.6,0.00532387]
[1738765820870,3.2078,2815.9,2815.6,0.00532387]
[1738765821064,2.97944719,2815.7,2814.5,3.2078]
[1738765821278,3.2078,2815.2,2814.2,3.2078]
[1738765821470,3.2078,2815.2,2814.5,3.2078]
[1738765821672,3.2078,2815.5,2814.8,3.2078]
[1738765822477,3.2078,2815.5,2814.9,0.00532387]
[1738765823276,3.2078,2815.2,2814.9,0.00532387]
[1738765823679,0.5381,2815.4,2814.9,0.00532387]
[1738765824379,3.2078,2815.5,2814.9,0.00532387]
[1738765825175,3.68951719,2815.7,2814.9,0.00532387]
[1738765825473,3.2078,2815.0,2814.9,0.00532387]
[1738765825677,3.2078,2815.0,2813.9,3.2078]
[1738765825879,3.2078,2814.5,2813.7,3.2078]
[1738765826078,40.8,2814.4,2813.7,3.2078]
[1738765826470,3.2078,2814.2,2813.4,3.7502]
[1738765826671,3.2078,2814.2,2813.4,0.5424]
[1738765826873,3.2078,2813.6,2813.5,0.00354924]
[1738765827079,8.2078,2813.6,2812.5,3.2078]
[1738765827276,3.2078,2813.2,2812.5,3.2078]
[1738765827482,40.8,2813.1,2812.8,3.2078]
[1738765827677,40.8,2813.1,2812.6,4.7175224]
[1738765827877,40.8,2813.1,2812.5,3.2078]
[1738765828284,40.8,2813.1,2812.6,4.64719622]
[1738765828578,40.8,2813.1,2812.7,3.2078]
[1738765828771,40.8,2813.1,2812.7,8.83398068]
[1738765828977,40.8,2813.1,2812.7,3.2078]
[1738765829179,40.8,2813.1,2812.4,3.2078]
[1738765829578,40.8,2813.1,2812.6,2.97944719]
[1738765829778,40.8,2813.1,2812.5,7.75408068]
[1738765829979,40.8,2813.1,2812.5,3.2078]
[1738765830376,3.2078,2813.5,2812.5,3.2078]
[1738765830580,3.2078,2813.2,2812.2,6.18724719]
[1738765830886,3.2078,2812.9,2812.2,3.2078]
[1738765831589,3.2078,2812.9,2811.8,0.5357]
[1738765831590,3.2078,2812.5,2811.8,3.7435]
[1738765832085,3.2078,2812.2,2811.3,3.2078]
[1738765833184,3.2078,2811.9,2811.3,3.2078]
[1738765837396,0.55363362,2812.4,2811.3,3.91895]
[1738765837604,0.00533362,2812.4,2811.6,3.2078]
[1738765837804,0.00533362,2812.4,2811.8,3.2078]
[1738765838098,3.2078,2812.2,2811.7,5.29320385]
[1738765838299,3.2078,2812.2,2811.7,4.71470385]
[1738765838500,3.2078,2812.2,2811.3,3.2078]
[1738765839097,0.00533362,2812.4,2811.7,3.91885]
[1738765839297,0.00533362,2812.4,2812.0,3.2078]
[1738765839596,3.2078,2813.3,2812.3,3.2078]
[1738765839800,3.2078,2813.0,2812.1,7.72816338]
[1738765840099,3.2078,2812.7,2811.8,3.1054]
[1738765840498,3.2078,2812.8,2811.8,2.5452]
[1738765840696,3.2078,2812.8,2812.0,3.2078]
[1738765840899,0.00533362,2812.5,2812.0,3.21313362]
[1738765841895,3.21313362,2812.5,2812.0,0.00533362]
[1738765842406,3.2078,2812.2,2812.0,0.00533362]
[1738765842811,0.71096,2812.1,2810.8,0.5666]
[1738765842998,3.2078,2811.7,2810.8,0.5666]
[1738765843309,3.2078,2811.7,2810.9,3.2078]
[1738765844405,3.2078,2812.0,2811.3,3.2078]
[1738765844606,3.2078,2812.3,2811.6,3.2078]
[1738765845504,40.8,2812.2,2811.6,3.2078]
[1738765846107,40.8,2812.2,2811.7,4.69172373]
[1738765846309,40.8,2812.2,2811.9,3.2078]
[1738765847607,0.00533362,2812.5,2812.1,0.71096]
[1738765847806,0.00533362,2812.5,2812.0,4.65418049]
[1738765847807,0.00533362,2812.5,2812.4,3.2078]
[1738765848008,40.80533362,2812.5,2812.4,3.2078]
[1738765848209,40.80533362,2812.5,2812.4,7.83619382]
[1738765849609,40.80533362,2812.5,2812.4,8.54708382]
[1738765849916,3.2078,2814.0,2812.7,0.71078]
[1738765850104,3.2078,2814.0,2813.1,3.2078]
[1738765850305,40.8,2813.5,2813.0,3.2078]
[1738765850512,40.8,2813.5,2813.1,0.5649]
[1738765850911,40.8,2813.5,2813.0,3.2078]
[1738765851212,40.8,2813.5,2813.0,3.21313362]
[1738765852608,40.8,2813.5,2813.3,3.2078]
[1738765852807,40.8,2813.5,2813.4,0.5823]
[1738765853708,0.00533362,2813.6,2813.4,5.13114745]
[1738765853913,0.00533362,2813.6,2813.4,0.5823]
[1738765854111,40.80533362,2813.6,2813.4,0.5823]
[1738765854812,0.00533362,2813.6,2813.5,5.36124542]
[1738765855012,3.7487,2814.8,2813.5,13.08220804]
[1738765855013,0.5409,2814.8,2813.5,13.08220804]
[1738765855207,0.5681,2815.3,2814.0,3.2078]
[1738765855410,40.8,2814.7,2814.1,0.5293]
[1738765855715,40.8,2814.7,2814.3,3.2078]
[1738765856213,40.8,2814.7,2814.4,4.62432441]
[1738765856512,40.8,2814.7,2814.3,3.2078]
[1738765857413,40.8,2814.7,2813.5,3.43157262]
[1738765857414,3.2078,2814.5,2813.8,3.2078]
[1738765858212,3.2078,2814.2,2813.3,3.2078]
[1738765858714,3.2078,2814.2,2813.6,3.2078]
[1738765859512,3.2078,2813.9,2813.5,0.00533362]
[1738765859820,3.2078,2813.6,2813.5,0.00533362]
[1738765860209,8.2078,2813.6,2812.5,3.2078]
[1738765860411,40.8,2812.7,2812.0,0.5761]
[1738765861121,40.8,2812.7,2811.9,3.2078]
[1738765861317,3.2078,2812.3,2811.8,4.55810466]
[1738765861713,0.54973362,2812.6,2810.8,3.7393]
[1738765861714,3.2078,2812.0,2810.8,3.7393]
[1738765861914,3.43157262,2812.5,2810.8,3.7393]
[1738765861915,3.2078,2811.7,2810.8,3.7393]
[1738765862116,3.2078,2811.7,2810.5,10.88055964]
[1738765862117,3.2078,2811.0,2810.5,10.88055964]
[1738765862325,3.43157262,2810.8,2810.5,10.88055964]
[1738765862716,3.2078,2810.6,2810.5,10.88055964]
[1738765863015,44.0078,2810.6,2810.5,10.88055964]
[1738765863220,40.8,2810.6,2810.5,10.88055964]
[1738765863621,46.51134,2810.6,2810.5,10.88055964]
[1738765863819,3.43157262,2809.8,2808.8,16.7465903]
[1738765864019,3.2078,2809.4,2808.8,16.7465903]
[1738765864416,3.43157262,2809.8,2808.8,16.7465903]
[1738765864417,6.63937262,2809.8,2808.8,16.7465903]
[1738765864617,0.00533362,2809.4,2808.8,16.7465903]
[1738765864926,0.00533362,2809.4,2808.9,4.5238442]
[1738765865118,3.2078,2809.3,2808.8,16.7465903]
[1738765865519,3.2078,2809.3,2808.9,4.69287944]
[1738765865823,3.2078,2809.3,2808.8,16.7465903]
[1738765866824,0.00533362,2809.4,2808.8,16.7465903]
[1738765867024,0.00533362,2809.4,2808.8,19.9543903]
[1738765867225,3.2078,2809.3,2808.8,16.7465903]
[1738765867432,3.2078,2809.0,2808.8,16.7465903]
[1738765867726,6.63937262,2809.0,2808.8,16.7465903]
[1738765867921,11.63937262,2809.0,2808.1,3.2078]
[1738765868127,3.2078,2808.5,2808.1,3.2078]
[1738765868513,1.6,2808.3,2808.1,3.2078]
[1738765869017,1.6,2808.3,2807.5,48.18687842]
[1738765869218,6.63937262,2808.2,2807.5,48.18687842]
[1738765869523,3.2078,2807.9,2807.5,48.18687842]
[1738765870026,3.2078,2807.6,2807.4,50.37688024]
[1738765870224,3.2078,2807.6,2806.3,25.53658706]
[1738765870225,3.2078,2807.6,2806.9,3.2078]
[1738765870621,3.2078,2807.6,2806.4,7.90152094]
[1738765870923,3.2078,2807.6,2806.4,3.2078]
[1738765871123,3.2078,2807.6,2806.7,3.2078]
[1738765871325,3.2078,2807.3,2806.4,3.2078]
[1738765871527,3.2078,2807.0,2806.4,3.2078]
[1738765872230,3.2078,2806.7,2806.3,22.32878706]
[1738765873231,3.2078,2806.4,2806.3,22.32878706]
[1738765873421,3.2078,2806.4,2804.6,3.43157262]
[1738765873422,0.71248,2806.1,2804.8,3.2078]
[1738765873623,3.2078,2805.5,2804.9,3.5632]
[1738765874227,3.21314388,2805.5,2804.9,3.5632]
[1738765874423,3.21314388,2805.5,2804.8,3.2078]
[1738765874631,3.21314388,2805.5,2805.2,3.5632]
[1738765874825,0.00534388,2805.5,2805.4,3.5632]
[1738765875230,3.2078,2806.4,2805.4,6.771]
[1738765875423,3.2078,2806.4,2805.8,3.2078]
[1738765875735,3.2078,2806.4,2806.0,3.5632]
[1738765876032,6.63937262,2806.1,2805.1,4.57232675]
[1738765876231,3.2078,2806.0,2805.6,3.5632]
[1738765876436,0.00534388,2805.9,2805.3,0.00534388]
[1738765876637,14.38456878,2805.6,2805.3,0.00534388]
[1738765876931,14.38456878,2805.6,2805.4,11.23559085]
[1738765877127,3.68736878,2805.6,2805.5,0.5458]
[1738765877328,2.80876878,2805.6,2805.5,0.5458]
[1738765877534,0.17296878,2805.6,2805.5,10.85464823]
[1738765877737,0.00534388,2805.9,2805.5,50.94201823]
[1738765877927,3.2078,2806.9,2805.8,6.63937262]
[1738765878132,13.03262806,2807.3,2806.5,3.2078]
[1738765878332,13.03262806,2807.3,2806.6,3.2078]
[1738765878531,13.03262806,2807.3,2806.6,7.79675178]
[1738765878734,13.03262806,2807.3,2806.7,3.2078]
[1738765879133,13.03262806,2807.3,2805.9,4.4011342]
[1738765879134,16.24042806,2807.3,2806.4,3.2078]
[1738765879340,16.24577194,2807.3,2806.4,3.2078]
[1738765879536,13.03797194,2807.3,2806.7,3.21314388]
[1738765879740,4.03583319,2806.9,2806.6,3.2078]
[1738765880042,3.15723319,2806.9,2806.8,5.36542536]
[1738765880243,0.70303319,2806.9,2806.8,5.36542536]
[1738765880432,4.86151093,2807.1,2807.0,0.71225]
[1738765880632,4.86151093,2807.1,2807.0,8.09237262]
[1738765880935,4.86151093,2807.1,2807.0,17.74549798]
[1738765881133,4.86151093,2807.1,2807.0,14.31392536]
[1738765881332,0.00534388,2807.3,2807.0,4.65312536]
[1738765881534,0.00534388,2807.3,2806.5,3.2078]
[1738765881834,3.2078,2807.1,2806.6,4.56034327]
[1738765882034,0.00534388,2807.3,2806.8,3.2078]
[1738765882435,0.00534388,2807.3,2806.9,4.59348347]
[1738765882641,3.2078,2807.1,2806.9,4.59348347]
[1738765882839,0.00534388,2807.3,2806.7,3.2078]
[1738765883137,0.00534388,2807.3,2807.0,4.5888441]
[1738765883335,0.00534388,2807.3,2806.8,4.5888441]
[1738765883538,0.00534388,2807.3,2806.7,3.92012]
[1738765883738,0.00534388,2807.3,2806.9,4.5888441]
[1738765884039,0.00534388,2807.3,2806.6,3.2078]
[1738765884341,0.00534388,2807.3,2807.1,0.71221]
[1738765884641,0.00534388,2807.3,2806.9,0.71228]
[1738765884830,0.00534388,2807.3,2806.8,8.43157262]
[1738765885035,5.89496312,2808.0,2807.2,11.29567301]
[1738765885236,1.59028557,2808.0,2807.9,0.71202]
[1738765885640,1.59028557,2808.0,2807.9,10.25843576]
[1738765886136,12.29243045,2809.5,2807.9,9.54641576]
[1738765886137,3.2078,2809.0,2807.9,9.54641576]
[1738765886341,3.2078,2809.0,2808.2,3.2078]
[1738765886540,3.2078,2808.6,2808.0,0.5084111]
[1738765886737,12.29243045,2809.5,2808.3,4.52478233]
[1738765886738,0.00534388,2808.7,2808.3,4.52478233]
[1738765886938,3.2078,2808.4,2808.1,4.66978235]
[1738765887436,3.2078,2808.4,2807.9,0.71202]
[1738765887437,3.2078,2808.4,2808.2,4.66978235]
[1738765887843,3.2078,2808.4,2807.7,0.00534388]
[1738765888040,0.00534388,2808.7,2807.7,0.00534388]
[1738765888041,3.2078,2808.1,2807.7,0.00534388]
[1738765888245,3.2078,2808.1,2807.8,4.62693383]
[1738765888445,3.2078,2808.1,2808.0,0.712]
[1738765888644,3.2078,2808.1,2807.8,4.62693383]
[1738765888840,3.2078,2808.1,2808.0,5.33893383]
[1738765889148,3.2078,2808.1,2808.0,5.712]
[1738765889340,3.2078,2808.1,2808.0,10.42722152]
[1738765889539,3.2078,2808.1,2808.0,4.71522152]
[1738765889840,3.2078,2808.1,2808.0,5.712]
[1738765890046,3.2078,2808.2,2807.8,4.71522152]
[1738765890246,3.2078,2808.2,2808.0,4.67093557]
[1738765890445,3.2078,2808.2,2807.9,4.67093557]
[1738765890847,3.2078,2808.2,2808.1,4.67093557]
[1738765891144,3.2078,2808.2,2808.0,4.63209421]
[1738765891345,3.2078,2808.2,2808.1,4.63209421]
[1738765891545,3.2078,2808.2,2807.8,4.63209421]
[1738765891743,3.2078,2807.9,2807.7,0.00534388]
[1738765893153,3.2078,2807.9,2806.5,0.71236]
[1738765893442,3.2078,2806.8,2806.4,0.3568]
[1738765893644,0.71201,2808.0,2806.5,4.60042326]
[1738765893840,3.2078,2806.6,2806.5,4.60042326]
[1738765894242,3.2078,2806.6,2806.1,0.3568]
[1738765894547,3.2078,2806.2,2805.9,5.3010255]
[1738765894750,3.2078,2806.2,2806.1,0.71248]
[1738765894946,3.2078,2806.7,2806.0,3.78837262]
[1738765895150,3.2078,2806.7,2806.4,3.43157262]
[1738765895444,3.2078,2806.7,2806.6,0.71235]
[1738765895644,3.2078,2807.6,2806.7,0.3568]
[1738765895847,3.2078,2807.9,2807.8,0.71205]
[1738765896051,3.2078,2808.2,2808.1,0.71197]
[1738765896246,3.2078,2808.2,2807.7,3.25518]
[1738765896247,3.2078,2808.2,2808.0,0.71199]
[1738765896447,3.2078,2808.2,2807.9,4.64632699]
[1738765896649,3.2078,2808.5,2808.3,0.71192]
[1738765896848,0.00534388,2808.3,2808.1,4.64632699]
[1738765897145,0.00534388,2808.3,2808.0,40.8]
[1738765897349,3.2078,2808.2,2808.0,45.44201214]
[1738765897545,3.2078,2808.2,2808.0,4.64201214]
[1738765897752,3.2078,2808.2,2807.9,4.64201214]
[1738765897944,3.2078,2808.2,2808.1,4.54172206]
[1738765898350,3.2078,2808.2,2807.8,0.00534388]
[1738765898651,0.00534388,2808.3,2807.8,0.00534388]
[1738765898652,3.2078,2807.9,2807.8,0.00534388]
[1738765899345,3.2078,2807.9,2806.7,0.3568]
[1738765899548,3.2078,2807.0,2806.3,0.3568]
[1738765899745,3.2078,2806.7,2806.3,0.3568]
[1738765899941,3.2078,2806.7,2806.4,4.63451768]
[1738765900749,3.2078,2806.7,2805.4,0.3568]
[1738765901055,3.2078,2805.9,2805.6,4.62997563]
[1738765901450,3.2078,2806.2,2805.6,5.0]
[1738765901748,3.2078,2806.2,2805.5,4.62997563]
[1738765901951,3.2078,2806.2,2805.4,0.3568]
[1738765901952,3.2078,2805.8,2805.7,4.62997563]
[1738765902246,3.2078,2805.9,2805.7,4.62997563]
[1738765902851,3.2078,2805.9,2805.4,0.3568]
[1738765903153,3.2078,2805.5,2805.4,0.3568]
[1738765903555,3.2078,2805.5,2805.4,4.6195246]
[1738765904051,3.2078,2805.5,2805.4,5.71266]
[1738765904251,3.2078,2805.5,2805.4,4.57892217]
[1738765904557,3.2078,2805.5,2805.2,0.3568]
[1738765904852,3.2078,2805.5,2805.4,4.57892217]
[1738765905249,3.2078,2805.5,2805.2,1.0695]
[1738765905451,2.49176034,2805.5,2805.4,4.53722677]
[1738765905851,2.49176034,2805.5,2805.4,5.24988677]
[1738765906049,3.2078,2805.9,2805.4,8.43157262]
[1738765906250,3.2078,2805.9,2805.8,0.71254]
[1738765906454,3.2078,2806.3,2805.6,0.71259]
[1738765906648,3.2078,2806.3,2805.8,4.54099153]
[1738765907353,3.2078,2806.3,2805.7,0.71257]
[1738765907555,3.2078,2806.0,2805.9,4.54712589]
[1738765907752,3.2078,2806.0,2805.8,4.54712589]
[1738765907954,3.2078,2806.0,2805.2,0.3568]
[1738765908261,3.2078,2806.0,2804.5,3.2078]
[1738765908262,3.2078,2805.3,2804.2,1.55916795]
[1738765908557,2.32341,2806.5,2803.8,3.43157262]
[1738765908558,3.2078,2804.7,2804.3,0.3568]
[1738765908959,0.00534388,2805.0,2804.4,3.2078]
[1738765909154,0.00534388,2805.0,2804.6,3.43157262]
[1738765909363,0.00534388,2805.0,2804.6,0.71286]
[1738765909556,0.00534388,2805.0,2804.7,4.59338464]
[1738765909755,0.00534388,2805.0,2804.9,0.71279]
[1738765909949,0.00534388,2805.0,2804.9,5.71279]
[1738765910264,0.00534388,2805.0,2804.9,10.314616]
[1738765910455,3.2078,2805.9,2805.4,0.71263]
[1738765910757,3.2078,2805.9,2805.5,4.601826]
[1738765910758,3.2078,2805.6,2805.5,4.601826]
[1738765911059,21.39164997,2805.9,2805.5,8.03339862]
[1738765911359,21.39164997,2805.9,2805.5,4.14419262]
[1738765911558,21.39164997,2805.9,2805.6,4.61431135]
[1738765911954,21.39164997,2805.9,2805.4,0.00534388]
[1738765912155,33.67680084,2806.0,2804.4,1.489]
[1738765912156,3.2078,2805.5,2804.4,1.489]
[1738765912365,3.2078,2804.7,2804.3,0.3568]
[1738765912560,3.2078,2804.4,2804.3,0.3568]
[1738765912857,3.2078,2804.4,2803.4,0.3568]
[1738765913058,3.2078,2803.6,2803.5,1.06993]
[1738765913362,3.2078,2803.6,2803.5,0.3568]